fUSD/lending_fUSD_20240803
["ID","MTS","AMOUNT","RATE_DAILY","PERIOD"]
[334071033,1722725438217,-800.97,9.891e-05,2]
[334071034,1722725438227,-228.74,9.949e-05,2]
[334071035,1722725438238,-179.02,9.97e-05,2]
[334071036,1722725438248,-168.64,9.994e-05,2]
[334071037,1722725438257,-153.5,0.00010376,2]
[334071038,1722725438266,-153.5,0.00010387,2]
[334071039,1722725438275,-153.5,0.00010397,2]
[334071040,1722725438285,-8056.41,0.00010397,2]
[334071041,1722725438295,-153.5,0.00010408,2]
[334071042,1722725438305,-153.5,0.00010418,2]
[334071043,1722725438314,-153.5,0.00010428,2]
[334071044,1722725438324,-377.85,0.00010451,2]
[334071045,1722725438333,-420.0,0.00010479,2]
[334071046,1722725438342,-420.0,0.00010479,2]
[334071047,1722725438351,-596.8,0.00010515,2]
[334071048,1722725438364,-255.0,0.00010544,2]
[334071049,1722725438373,-17495.6428516,0.00010567,2]
[334071051,1722725438715,-591.4607645,0.00010567,2]
[334071053,1722725438727,-1109.20886868,0.00010567,2]
[334071054,1722725439139,-55284.68526684,0.00010567,2]
[334071056,1722725439151,-771.26757877,0.00010567,2]
[334071057,1722725439163,-39976.73466961,0.00010567,2]
[334071058,1722725439173,-259.6572,0.00010573,2]
[334071059,1722725439183,-868.81,0.00010582,2]
[334071060,1722725439193,-2261.0675,0.00010681,2]
[334071061,1722725439203,-160.0,0.00010706,2]
[334071062,1722725439212,-1000.0,0.00010799,2]
[334071063,1722725439222,-6330.0609,0.0001088,2]
[334071064,1722725439231,-164.36173826,0.000109,2]
[334071065,1722725439241,-525.84612893,0.000109,2]
[334071066,1722725439250,-162.30891772,0.000109,2]
[334071067,1722725439260,-190.33654962,0.000109,2]
[334071068,1722725439269,-204.3760443,0.000109,2]
[334071069,1722725439278,-223.24763523,0.000109,2]
[334071070,1722725439288,-250.0,0.00010959,2]
[334071071,1722725439297,-735.06,0.00010959,2]
[334071072,1722725439307,-1776.21973343,0.00010979,2]
[334071073,1722725439317,-8562.06795449,0.0001098,2]
[334071074,1722725439711,-3017.256,0.0001098,2]
[334071075,1722725439725,-1595.00785683,0.0001098,2]
[334071076,1722725439734,-1285.41697717,0.0001098,2]
[334071077,1722725439745,-362.572002,0.0001098,2]
[334071078,1722725439757,-1352.01102083,0.0001098,2]
[334071079,1722725439766,-28222.56680354,0.0001099,2]
[334071080,1722725439780,-17965.72626211,0.0001099,2]
[334071081,1722725439791,-303.27304,0.0001099,2]
[334071082,1722725439943,-886.05188537,0.0001099,2]
[334071083,1722725440019,-1641.30252,0.0001099,2]
[334071084,1722725440091,-750.0954246,0.0001099,2]
[334071085,1722725440103,-1519.10100473,0.0001099,2]
[334071086,1722725440116,-1278.18643424,0.0001099,2]
[334071087,1722725440127,-572.38000001,0.0001099,2]
[334071088,1722725440140,-316.81654665,0.0001099,2]
[334071089,1722725440150,-4310.1087126,0.00010997,2]
[334071090,1722725440160,-31275.7711978,0.00010997,2]
[334071435,1722725443795,-553.9471,0.00010699,2]
[334071437,1722725443805,-393.45933778,0.00010997,2]
[334071439,1722725443820,-3034.96957121,0.00010997,2]
[334071444,1722725443853,-1674.5515957,0.00010997,2]
[334071446,1722725443864,-30397.76054161,0.00010997,2]
[334071558,1722725445737,-28695.9541524,0.00010997,2]
[334071559,1722725445748,-624.1148734,0.00010997,2]
[334071560,1722725445758,-1403.3733613,0.00010997,2]
[334071561,1722725445767,-18024.4475108,0.00010997,2]
[334071562,1722725445778,-5950.99207965,0.00010999,2]
[334071563,1722725445788,-1123.42877866,0.00010999,3]
[334071564,1722725445797,-210.70957471,0.00010999,2]
[334071565,1722725445807,-333723.75827552,0.00011,2]
[334071566,1722725445831,-1301.33763081,0.00011,2]
[334071567,1722725445842,-5114.97780404,0.00011,2]
[334071568,1722725445854,-896.1847932,0.00011,2]
[334071569,1722725445896,-480.93730787,0.00011,2]
[334071570,1722725446100,-6256.73050416,0.00011,2]
[334071626,1722725591893,500.0,0.00027,120]
[334071630,1722725596614,1000.0,0.00027,120]
[334071631,1722725597158,1000.0,0.00027,120]
[334071632,1722725602284,500.0,0.00026767,120]
[334071633,1722725606334,500.0,0.00027,120]
[334071634,1722725613013,200.0,0.00027,120]
[334071637,1722726030479,353.91,8.35e-05,2]
[334071643,1722726363528,1500.0,0.00025,60]
[334071646,1722726543726,350.18,8.225e-05,2]
[334071658,1722726631868,-151.03453607,9.888e-05,2]
[334071659,1722726631878,-173.15774171,9.952e-05,2]
[334071660,1722726631887,-200.0,0.00010014,2]
[334071661,1722726631897,-91.57824222,0.00010033,2]
[334071662,1722726631909,-158.42175778,0.00010033,2]
[334071663,1722726631918,-300.0,0.00010051,2]
[334071664,1722726631927,-38.34824222,0.00010052,2]
[334071665,1722726631938,-287.37338502,0.00010052,2]
[334071666,1722726631949,-5089.15586786,0.00010052,2]
[334071667,1722726631960,-4982.1901667,0.00010052,2]
[334071668,1722726631982,-13502.9323382,0.00010052,2]
[334071669,1722726631992,-1256.4439005,0.00010121,2]
[334071670,1722726632001,-158.84273734,0.00010121,2]
[334071671,1722726632011,-155.0,0.00010121,2]
[334071672,1722726632020,-1221.3423,0.00010151,2]
[334071673,1722726632029,-150.0,0.00010203,2]
[334071674,1722726632039,-998.72,0.00010252,2]
[334071675,1722726632048,-350.18,0.00010488,2]
[334071676,1722726632058,-214.0,0.00010566,2]
[334071677,1722726632067,-2560.39,0.00010614,2]
[334071678,1722726632077,-499.99,0.00010614,2]
[334071679,1722726632086,-1748.92140738,0.00010751,2]
[334071680,1722726632095,-15475.2891,0.000108,2]
[334071681,1722726632106,-693.4472,0.00010897,2]
[334071682,1722726632115,-150.0,0.00010899,2]
[334071683,1722726632125,-1143.5919,0.000109,2]
[334071684,1722726632134,-1000.0,0.000109,2]
[334071685,1722726632144,-2500.0,0.000109,2]
[334071686,1722726632154,-189.72278742,0.000109,2]
[334071687,1722726632163,-504.02628153,0.000109,2]
[334071688,1722726632173,-167.4357264,0.000109,2]
[334071689,1722726632182,-500.0,0.00010911,2]
[334071690,1722726632192,-500.0,0.00010912,2]
[334071691,1722726632202,-500.0,0.00010912,2]
[334071692,1722726632215,-200.0,0.00010959,2]
[334071693,1722726632224,-155.36,0.0001099,2]
[334071694,1722726632235,-5626.0917284,0.00010997,2]
[334071695,1722726632244,-1638.90014625,0.00010997,2]
[334071696,1722726632254,-5950.99207965,0.00010999,2]
[334071698,1722726632263,-860196.14111584,0.00011,2]
[334071700,1722726632275,-1528.35103245,0.00011,2]
[334071702,1722726632287,-413.47322908,0.00011,2]
[334071703,1722726632298,-2613.50210701,0.00011,2]
[334071704,1722726632309,-1211.283617,0.00011,2]
[334071705,1722726632338,-1701.59232965,0.00011,2]
[334071706,1722726632349,-777.495996,0.00011,2]
[334071707,1722726632360,-2470.24297497,0.00011,2]
[334071708,1722726632373,-402610.21636565,0.00011,2]
[334071709,1722726632389,-1042.40649413,0.00011,2]
[334071710,1722726632403,-521.44331218,0.00011,2]
[334071711,1722726632416,-1579.80960355,0.00011,2]
[334071712,1722726632427,-8770.3115774,0.00011,2]
[334071713,1722726632439,-451.63886766,0.00011,2]
[334071718,1722726637880,-4498.92796112,0.00010999,2]
[334071719,1722726637891,-14638.97103507,0.00011,2]
[334071720,1722726637903,-5270.0,0.00011,2]
[334071721,1722726637915,-23996.93107085,0.00011,2]
[334071722,1722726637927,-732.08113583,0.00011,2]
[334071723,1722726637940,-442.25,0.00011,2]
[334071724,1722726637951,-6004.1435,0.00011,2]
[334071725,1722726637963,-515.28705452,0.00011,2]
[334071726,1722726637974,-1134.70787623,0.00011,2]
[334071727,1722726637988,-6429.80958324,0.00011,2]
[334071730,1722726638730,-35849.47465954,0.00011,2]
[334071731,1722726639188,-1041.06219095,0.00011,2]
[334071732,1722726639201,-762.51050487,0.00011,2]
[334071733,1722726639212,-1248.82727493,0.00011,2]
[334071734,1722726639226,-1167.56978197,0.00011,2]
[334071735,1722726639239,-6266.03065695,0.00011,2]
[334071736,1722726639250,-3107.05121477,0.00011,2]
[334071737,1722726639262,-5213.2416444,0.00011,2]
[334071738,1722726639273,-10057.58,0.00011,2]
[334071739,1722726639285,-3861.57904239,0.00011,2]
[334071740,1722726639297,-7570.38815316,0.00011,2]
[334071741,1722726639308,-4852.6012,0.00011,2]
[334071742,1722726639322,-10535.96684458,0.00011,2]
[334071743,1722726639333,-307.07755376,0.00011,2]
[334071744,1722726639344,-916.92440523,0.00011,2]
[334071745,1722726639357,-346.4036978,0.00011,2]
[334071746,1722726640052,-6025.04227376,0.00011,2]
[334071747,1722726640064,-487.73034388,0.00011,2]
[334071748,1722726640075,-3891.36684221,0.00011,2]
[334071749,1722726640087,-503.4787228,0.00011,2]
[334071750,1722726640098,-757.1418884,0.00011,2]
[334071751,1722726640110,-307.46014093,0.00011,2]
[334071752,1722726640121,-5117.89307753,0.00011,2]
[334071753,1722726640133,-3482.59104684,0.00011,2]
[334071754,1722726640144,-1076.96304733,0.00011,2]
[334071755,1722726640155,-1079.800005,0.00011,2]
[334071756,1722726640215,-24104.6103854,0.00011,2]
[334071757,1722726640227,-680.67,0.00011,2]
[334071758,1722726640241,-540.18000005,0.00011,2]
[334071759,1722726640253,-347.78074878,0.00011,2]
[334071760,1722726640264,-1413.08096614,0.00011,2]
[334071761,1722726640275,-30305.85968867,0.00011,2]
[334071762,1722726640287,-65864.16137191,0.00011,2]
[334071763,1722726640379,-322.85018007,0.00011,2]
[334071764,1722726640392,-338642.58192207,0.00011,2]
[334072188,1722726644691,-276.224985,0.00011,2]
[334072191,1722726644703,-272.05570757,0.00011,2]
[334072193,1722726644715,-883.32723249,0.00011,2]
[334072195,1722726644727,-291.97097341,0.00011,2]
[334072197,1722726644742,-62553.45886289,0.00011,2]
[334072200,1722726644759,-18874.65310769,0.00011,2]
[334072203,1722726644771,-630.18302999,0.00011,2]
[334072205,1722726644784,-33539.00000004,0.00011,2]
[334072207,1722726644796,-297.59077079,0.00011,2]
[334072209,1722726644809,-711.51228327,0.00011,2]
[334072210,1722726644821,-115880.02400017,0.00011,2]
[334072211,1722726644833,-1085.140985,0.00011,2]
[334072268,1722726646102,-1675.2,0.00011,2]
[334072273,1722726646208,-1111.73853,0.00011,2]
[334072274,1722726646220,-891.59999964,0.00011,2]
[334072275,1722726646327,-3325.0,0.00011,2]
[334072276,1722726646431,-13859.30902558,0.00011,2]
[334072279,1722726646444,-828.18787916,0.00011,2]
[334072281,1722726646457,-321.56691331,0.00011,2]
[334072313,1722727041512,329.12,8.309e-05,2]
[334072314,1722727557719,312.66,8.219e-05,2]
[334072344,1722727833803,-557.07764247,9.746e-05,2]
[334072345,1722727833816,-1679.06194262,9.746e-05,2]
[334072346,1722727833829,-1056.0,9.746e-05,2]
[334072347,1722727833841,-9319.55914838,9.746e-05,2]
[334072348,1722727833854,-1215.07590594,9.746e-05,2]
[334072349,1722727833888,-304.515,9.746e-05,2]
[334072350,1722727833901,-300.0,9.746e-05,2]
[334072351,1722727833914,-2839.55549383,9.746e-05,2]
[334072352,1722727833926,-300.0,9.746e-05,2]
[334072353,1722727833980,-3243.73394768,9.746e-05,2]
[334072354,1722727833994,-3085.42091908,9.746e-05,2]
[334072355,1722727834004,-150.0,9.779e-05,2]
[334072356,1722727834015,-250.0,9.903e-05,2]
[334072357,1722727834026,-267.2,9.971e-05,2]
[334072358,1722727834037,-2024.42686057,0.0001,2]
[334072359,1722727834047,-198.98,0.00010044,2]
[334072360,1722727834058,-244.75129483,0.000101,2]
[334072361,1722727834068,-1000.0,0.00010172,2]
[334072362,1722727834079,-300.0,0.000103,3]
[334072363,1722727834090,-499.99,0.000103,2]
[334072364,1722727834100,-342.53762117,0.000103,2]
[334072365,1722727838072,-709.08266212,0.000103,2]
[334072366,1722727838709,-651.30992017,0.000103,2]
[334072367,1722727839228,-131.46979654,0.000103,2]
[334072368,1722727839239,-161.17,0.00010365,2]
[334072369,1722727839251,-700.0,0.000104,3]
[334072370,1722727839261,-312.66,0.00010476,2]
[334072371,1722727839271,-1100.0,0.000105,3]
[334072372,1722727839281,-1500.0,0.000106,3]
[334072373,1722727839291,-1865.0,0.000106,2]
[334072374,1722727839302,-1900.0,0.000107,3]
[334072382,1722727839833,-1093.0,0.000107,2]
[334072383,1722727839859,-1000.0,0.000107,2]
[334072384,1722727839881,-182.0,0.00010752,2]
[334072385,1722727839896,-300.0,0.000108,3]
[334072386,1722727839906,-877.31029619,0.0001089,2]
[334072387,1722727839918,-712.43225591,0.0001089,2]
[334072388,1722727839930,-1410.2574479,0.0001089,2]
[334072389,1722727839939,-169.84462218,0.000109,2]
[334072390,1722727839950,-500.0,0.000109,2]
[334072391,1722727839961,-300.0,0.000109,3]
[334072392,1722727839971,-165.80379858,0.000109,2]
[334072393,1722727839981,-2500.0,0.000109,2]
[334072394,1722727839991,-189.72278742,0.000109,2]
[334072395,1722727840000,-3517.09673094,0.000109,2]
[334072396,1722727840011,-174.83539434,0.000109,2]
[334072397,1722727840021,-167.4357264,0.000109,2]
[334072398,1722727840031,-500.0,0.00010912,2]
[334072399,1722727840041,-200.0,0.00010959,2]
[334072400,1722727840053,-250.0,0.00010959,2]
[334072401,1722727840064,-18735.06481135,0.0001098,2]
[334072402,1722727840073,-201460.45720535,0.00011,2]
[334072403,1722727840085,-2713.35802244,0.00011,2]
[334072404,1722727840096,-38767.92804241,0.00011,2]
[334072405,1722727840108,-1605.98,0.00011,2]
[334072406,1722727840121,-7046.73027881,0.00011,2]
[334072413,1722727840313,-781.37602748,0.00011,2]
[334072416,1722727840325,-287.46143004,0.00011,2]
[334072417,1722727840336,-1060.33330306,0.00011,2]
[334072431,1722727840502,-1608.91586877,0.00011,2]
[334072432,1722727840514,-656.66,0.00011,2]
[334072433,1722727840525,-462.7030002,0.00011,2]
[334072434,1722727840687,-1941.94,0.00011,2]
[334072435,1722727840737,-8377.97250013,0.00011,2]
[334072436,1722727840787,-269.23999432,0.00011,2]
[334072437,1722727840799,-12283.27818692,0.00011,2]
[334072499,1722727843184,-1365148.44170421,0.00011,2]
[334072500,1722727844104,-1433.76304378,0.00011,2]
[334072513,1722727845113,-16846.68719545,0.00011,2]
[334072514,1722727845143,-1217.50675063,0.00011,2]
[334072515,1722727845161,-33208.99999999,0.00011,2]
[334072525,1722727846768,-1015.6439,0.00011,2]
[334072527,1722728021890,306.68,8.354e-05,2]
[334072528,1722728481901,291.34,8.219e-05,2]
[334072539,1722728859538,2526.479115,9.475e-05,2]
[334072540,1722728998851,276.77,8.219e-05,2]
[334072546,1722729032231,-640.33202254,9.523e-05,2]
[334072547,1722729032241,-318.38,9.571e-05,2]
[334072548,1722729032251,-841.28797746,9.58e-05,2]
[334072567,1722729038120,-659.5914572,9.58e-05,2]
[334072577,1722729038722,-3241.6375,9.58e-05,2]
[334072578,1722729038734,-985.91801718,9.58e-05,2]
[334072589,1722729039128,-878.10158729,9.58e-05,2]
[334072590,1722729039140,-298.93586434,9.58e-05,2]
[334072591,1722729039155,-1015.57365664,9.58e-05,2]
[334072592,1722729039167,-15978.95393989,9.58e-05,2]
[334072593,1722729039176,-161.17,9.601e-05,2]
[334072594,1722729039186,-250.0,9.612e-05,2]
[334072595,1722729039195,-156.24,9.618e-05,2]
[334072596,1722729039204,-150.0,9.671e-05,2]
[334072597,1722729039214,-840.81,9.8e-05,2]
[334072598,1722729039223,-13.32605991,0.0001,5]
[334072599,1722729039234,-2120.65324207,0.0001,5]
[334072600,1722729039244,-379.34675793,0.00010125,2]
[334072601,1722729039255,-660.96571054,0.00010125,2]
[334072602,1722729039267,-678.46643896,0.00010125,2]
[334072603,1722729039278,-52.07109257,0.00010125,2]
[334072604,1722729039287,-628.83910743,0.00010125,2]
[334072605,1722729039299,-3627.22089257,0.00010125,2]
[334072606,1722729039308,-150.0,0.00010125,2]
[334072607,1722729039318,-499.99,0.00010125,2]
[334072608,1722729039327,-526.17759152,0.00010126,2]
[334072609,1722729039337,-1256.4439005,0.00010126,2]
[334072610,1722729039346,-306.54421766,0.00010126,2]
[334072611,1722729039355,-276.77,0.00010464,2]
[334072612,1722729039365,-999.99,0.00010475,2]
[334072613,1722729039375,-150.0,0.00010584,2]
[334072614,1722729039384,-150.0,0.00010609,2]
[334072615,1722729039393,-150.0,0.00010617,2]
[334072616,1722729039403,-150.0,0.00010639,2]
[334072617,1722729039412,-150.0,0.00010658,2]
[334072618,1722729039422,-150.0,0.00010672,2]
[334072619,1722729039432,-150.0,0.00010727,2]
[334072620,1722729039442,-1500.0,0.00010727,2]
[334072621,1722729039452,-150.0,0.00010728,2]
[334072622,1722729039462,-150.0,0.00010728,2]
[334072623,1722729039472,-150.0,0.0001073,2]
[334072624,1722729039482,-150.0,0.0001073,2]
[334072625,1722729039491,-150.0,0.00010731,2]
[334072626,1722729039500,-150.0,0.00010732,2]
[334072627,1722729039510,-150.0,0.00010733,2]
[334072628,1722729039519,-171.39223467,0.00010734,2]
[334072629,1722729039528,-1500.0,0.00010737,2]
[334072630,1722729039538,-150.0,0.00010737,2]
[334072631,1722729039547,-150.0,0.00010737,2]
[334072632,1722729039557,-150.0,0.00010738,2]
[334072633,1722729039568,-150.0,0.0001074,2]
[334072634,1722729039581,-150.0,0.0001074,2]
[334072635,1722729039591,-150.0,0.00010743,2]
[334072636,1722729039601,-150.0,0.00010744,2]
[334072637,1722729039824,-150.0,0.00010744,2]
[334072638,1722729039841,-150.0,0.00010746,2]
[334072639,1722729039851,-150.0,0.00010754,2]
[334072640,1722729039862,-318.38,0.00010768,2]
[334072641,1722729039872,-98.24513572,0.00010768,2]
[334072642,1722729040317,-150.0,0.00010725,2]
[334072643,1722729040328,-150.0,0.0001073,2]
[334072644,1722729040337,-51.75486428,0.00010768,2]
[334072645,1722729040347,-150.0,0.00010769,2]
[334072646,1722729040356,-150.0,0.00010771,2]
[334072647,1722729040366,-150.0,0.00010773,2]
[334072648,1722729040375,-150.0,0.00010775,2]
[334072649,1722729040385,-150.0,0.00010777,2]
[334072650,1722729040394,-150.0,0.00010779,2]
[334072651,1722729040403,-150.0,0.00010779,2]
[334072652,1722729040413,-150.0,0.0001078,2]
[334072653,1722729040422,-150.0,0.00010781,2]
[334072654,1722729040431,-150.0,0.00010781,2]
[334072655,1722729040442,-150.0,0.00010783,2]
[334072656,1722729040451,-1500.0,0.00010784,2]
[334072657,1722729040461,-150.0,0.00010785,2]
[334072658,1722729040470,-150.0,0.00010789,2]
[334072659,1722729040480,-150.0,0.00010791,2]
[334072660,1722729040489,-150.0,0.00010791,2]
[334072661,1722729040499,-150.0,0.00010792,2]
[334072662,1722729040508,-1500.0,0.00010793,2]
[334072663,1722729040517,-150.0,0.00010795,2]
[334072664,1722729040527,-150.0,0.00010796,2]
[334072665,1722729040536,-150.0,0.00010797,2]
[334072666,1722729040545,-150.0,0.00010798,2]
[334072667,1722729040555,-150.0,0.000108,2]
[334072668,1722729040564,-150.0,0.00010811,2]
[334072669,1722729040575,-150.0,0.00010814,2]
[334072670,1722729040585,-150.0,0.00010815,2]
[334072671,1722729040595,-150.0,0.00010815,2]
[334072672,1722729040604,-150.0,0.00010816,2]
[334072673,1722729040613,-150.0,0.00010817,2]
[334072674,1722729040623,-150.48722973,0.00010818,2]
[334072675,1722729040632,-156.24,0.0001082,2]
[334072676,1722729040642,-150.0,0.0001082,2]
[334072677,1722729040652,-150.0,0.00010822,2]
[334072678,1722729040662,-150.0,0.00010826,2]
[334072679,1722729040672,-1500.0,0.00010831,2]
[334072680,1722729040681,-150.0,0.00010834,2]
[334072681,1722729040691,-150.0,0.00010836,2]
[334072682,1722729040700,-150.0,0.00010841,2]
[334072683,1722729040710,-150.0,0.00010843,2]
[334072684,1722729040720,-1500.0,0.00010845,2]
[334072685,1722729040729,-150.0,0.00010849,2]
[334072686,1722729040739,-150.0,0.0001085,2]
[334072687,1722729040748,-150.0,0.00010851,2]
[334072688,1722729040758,-150.0,0.00010851,2]
[334072689,1722729040767,-150.0,0.00010851,2]
[334072690,1722729040777,-150.0,0.00010853,2]
[334072691,1722729040786,-1500.0,0.00010856,2]
[334072692,1722729040796,-150.0,0.00010859,2]
[334072693,1722729040806,-150.0,0.00010861,2]
[334072695,1722729040815,-1500.0,0.00010862,2]
[334072696,1722729040825,-1500.0,0.00010874,2]
[334072697,1722729040835,-150.0,0.00010874,2]
[334072698,1722729040845,-300.0,0.00010875,2]
[334072699,1722729040854,-150.0,0.00010875,2]
[334072701,1722729040863,-150.0,0.00010887,2]
[334072703,1722729040873,-150.0,0.00010889,2]
[334072705,1722729040882,-150.0,0.0001089,2]
[334072707,1722729040892,-150.0,0.00010892,2]
[334072709,1722729040902,-150.0,0.00010899,2]
[334072711,1722729040911,-500.0,0.000109,2]
[334072713,1722729040920,-3274.10498077,0.000109,2]
[334072715,1722729040930,-1497.4301,0.000109,2]
[334072717,1722729040940,-336.01752102,0.000109,2]
[334072719,1722729040950,-167.4357264,0.000109,2]
[334072721,1722729040961,-300.0,0.00010903,2]
[334072723,1722729040970,-150.0,0.0001091,2]
[334072725,1722729040980,-500.0,0.00010912,2]
[334072727,1722729040990,-150.0,0.00010916,2]
[334072728,1722729040999,-300.0,0.00010918,2]
[334072730,1722729041009,-150.0,0.00010918,2]
[334072733,1722729041020,-150.0,0.0001092,2]
[334072735,1722729041030,-239.20544256,0.00010929,2]
[334072737,1722729041040,-150.0,0.0001093,2]
[334072739,1722729041049,-1500.0,0.0001093,2]
[334072740,1722729041059,-150.0,0.00010931,2]
[334072743,1722729041071,-150.0,0.00010934,2]
[334072745,1722729041083,-150.0,0.00010938,2]
[334072747,1722729041092,-150.0,0.00010941,2]
[334072748,1722729041102,-150.0,0.00010942,2]
[334072750,1722729041113,-150.0,0.00010943,2]
[334072752,1722729041133,-150.0,0.00010944,2]
[334072754,1722729041154,-150.0,0.00010947,2]
[334072756,1722729041176,-150.0,0.00010947,2]
[334072758,1722729041198,-150.0,0.00010947,2]
[334072760,1722729041221,-150.0,0.00010947,2]
[334072762,1722729041242,-150.0,0.0001095,2]
[334072764,1722729041264,-150.0,0.00010951,2]
[334072766,1722729041288,-150.0,0.00010954,2]
[334072768,1722729041312,-150.0,0.00010956,2]
[334072771,1722729041335,-200.0,0.00010959,2]
[334072772,1722729041357,-252.74,0.00010959,2]
[334072774,1722729041371,-397.8,0.00010959,2]
[334072777,1722729041382,-150.0,0.00010959,2]
[334072778,1722729041392,-150.0,0.00010959,2]
[334072780,1722729041401,-150.0,0.00010961,2]
[334072782,1722729041411,-150.0,0.00010962,2]
[334072784,1722729041421,-150.0,0.00010964,2]
[334072786,1722729041431,-150.0,0.00010966,2]
[334072788,1722729041441,-150.0,0.00010968,2]
[334072791,1722729041451,-300.0,0.0001097,2]
[334072792,1722729041461,-150.0,0.00010973,2]
[334072795,1722729041471,-150.0,0.00010977,2]
[334072796,1722729041480,-300.0,0.00010979,2]
[334072799,1722729041490,-150.0,0.00010982,2]
[334072800,1722729041499,-150.0,0.00010982,2]
[334072803,1722729041510,-150.0,0.00010984,2]
[334072805,1722729041519,-150.0,0.00010985,2]
[334072807,1722729041529,-150.0,0.00010986,2]
[334072809,1722729041538,-300.0,0.00010992,2]
[334072811,1722729041548,-326.07380236,0.00010995,2]
[334072813,1722729041558,-150.0,0.00010996,2]
[334072815,1722729041568,-5848.76626772,0.00010997,2]
[334072817,1722729041582,-1129.33159998,0.00010997,2]
[334072819,1722729041591,-165.7628543,0.00010997,2]
[334072821,1722729041601,-231.4553894,0.00010997,2]
[334072823,1722729041610,-70248.14887487,0.00010997,2]
[334072826,1722729041629,-725.04267588,0.00010997,2]
[334072828,1722729041641,-934.68777146,0.00010997,2]
[334072836,1722729041701,-9358.78107883,0.00010997,2]
[334072840,1722729041736,-150.0,0.00010755,2]
[334072842,1722729041746,-150.0,0.00010824,2]
[334072844,1722729041756,-150.0,0.00010856,2]
[334072846,1722729041765,-16.51281727,0.00010997,2]
[334072848,1722729041776,-221.13462809,0.00010997,2]
[334072851,1722729041787,-1373.30890441,0.00010997,2]
[334072854,1722729041809,-1531.85830089,0.00010997,2]
[334072856,1722729041819,-923.08443828,0.00010999,3]
[334072858,1722729041831,-200.34434038,0.00010999,3]
[334072860,1722729041841,-1123.42877866,0.00010999,3]
[334072862,1722729041851,-28.97016317,0.00011,2]
[334072864,1722729041862,-1180.22303273,0.00011,2]
[334072866,1722729041873,-2010.0,0.00011,2]
[334072871,1722729041909,-150.0,0.00010862,2]
[334072873,1722729041919,-24704.21966704,0.00011,2]
[334073053,1722729044187,-150.0,0.00010727,2]
[334073054,1722729044197,-150.0,0.00010807,2]
[334073055,1722729044207,-150.0,0.00010902,2]
[334073056,1722729044215,-10.35272284,0.00010927,2]
[334073057,1722729044235,-139.64727716,0.00010927,2]
[334073058,1722729044245,-210.70957471,0.00010999,2]
[334073059,1722729044255,-9936.2168979,0.00011,2]
[334073060,1722729044267,-1919.52883686,0.00011,2]
[334073061,1722729044282,-494172.85013411,0.00011,2]
[334073062,1722729044292,-1000.0,0.00011,2]
[334073063,1722729044302,-1000.0,0.00011,2]
[334073064,1722729044311,-1000.0,0.00011,2]
[334073065,1722729044321,-1000.0,0.00011,2]
[334073066,1722729044332,-1003.73120651,0.00011,2]
[334073067,1722729044341,-109712.40536813,0.00011,2]
[334073068,1722729044356,-8310.74888565,0.00011,2]
[334073069,1722729046480,-5947.62042323,0.00010999,2]
[334073070,1722729046489,-8835.51337945,0.00011,2]
[334073071,1722729046500,-6817.86,0.00011,2]
[334073072,1722729046511,-3280.09,0.00011,2]
[334073073,1722729096360,2000.0,9e-05,2]
[334073074,1722729191334,500.0,0.00027,120]
[334073075,1722729196389,1000.0,0.00027,120]
[334073076,1722729196810,1000.0,0.00027,120]
[334073077,1722729204092,500.0,0.00027,120]
[334073078,1722729209475,200.0,0.00027,120]
[334073079,1722729389687,-5220.30148618,0.00011105,7]